bitfinex/quotes_SOLUSD_20230120
["timestamp","ask_amount","ask_price","bid_price","bid_amount"]
[1674212039525,35.46,21.155,21.147,0.04942513]
[1674212039741,35.46,21.157,21.147,0.04942513]
[1674212040362,20.0,21.158,21.147,0.04942513]
[1674212040676,20.0,21.159,21.147,0.04942513]
[1674212040890,20.0,21.159,21.148,10.0]
[1674212041525,50.0,21.16,21.148,10.0]
[1674212041841,50.0,21.16,21.15,10.0]
[1674212042259,50.0,21.16,21.15,25.2]
[1674212043088,50.0,21.16,21.148,10.0]
[1674212043300,0.96,21.159,21.148,10.0]
[1674212043923,35.45,21.159,21.148,10.0]
[1674212044136,50.0,21.16,21.15,10.0]
[1674212044469,50.0,21.16,21.148,45.47]
[1674212047101,0.96,21.159,21.148,45.47]
[1674212047301,1.92,21.159,21.148,10.0]
[1674212050334,18.92,21.159,21.147,0.04942513]
[1674212050673,10.0,21.157,21.147,0.04942513]
[1674212050876,10.0,21.155,21.147,0.04942513]
[1674212051190,18.92,21.154,21.147,0.04942513]
[1674212054773,35.46,21.153,21.147,0.04942513]
[1674212054963,1.92,21.152,21.147,0.04942513]
[1674212055168,17.96,21.154,21.147,0.04942513]
[1674212055378,0.96,21.153,21.147,0.04942513]
[1674212055588,0.96,21.152,21.147,0.04942513]
[1674212056772,36.42,21.152,21.147,0.04942513]
[1674212056957,17.96,21.151,21.147,0.04942513]
[1674212057181,0.96,21.15,21.147,0.04942513]
[1674212059715,0.96,21.151,21.147,0.04942513]
[1674212059926,0.96,21.153,21.147,0.04942513]
[1674212060123,0.96,21.152,21.147,0.04942513]
[1674212060334,0.96,21.152,21.143,10.0]
[1674212060544,0.96,21.152,21.142,119.6694]
[1674212061818,0.96,21.152,21.136,35.49]
[1674212061819,35.47,21.151,21.136,35.49]
[1674212062031,18.92,21.15,21.137,20.0]
[1674212062558,10.0,21.149,21.137,20.0]
[1674212062775,18.92,21.148,21.136,20.0]
[1674212063381,18.92,21.148,21.137,10.0]
[1674212063705,18.92,21.148,21.136,20.0]
[1674212064431,18.92,21.148,21.137,10.0]
[1674212065603,1.92,21.148,21.137,70.69145925]
[1674212065824,1.92,21.148,21.137,35.20145925]
[1674212066213,18.92,21.148,21.137,35.20145925]
[1674212066427,1.92,21.148,21.137,35.20145925]
[1674212069285,1.92,21.148,21.139,10.0]
[1674212069488,1.92,21.148,21.14,35.48]
[1674212069694,1.92,21.148,21.141,10.0]
[1674212070407,5.14119,21.152,21.141,10.0]
[1674212070623,1.92,21.151,21.141,10.0]
[1674212073596,18.92,21.151,21.141,10.0]
[1674212074223,1.92,21.151,21.141,10.0]
[1674212074745,1.92,21.151,21.14,15.2]
[1674212075265,18.92,21.151,21.14,50.68]
[1674212075486,18.92,21.151,21.141,10.0]
[1674212075920,1.92,21.151,21.141,10.0]
[1674212078649,1.92,21.151,21.14,50.68]
[1674212078861,18.92,21.151,21.14,15.2]
[1674212085276,1.92,21.151,21.141,10.0]
[1674212097800,1.92,21.151,21.14,50.68]
[1674212098410,1.92,21.151,21.141,10.0]
[1674212100643,1.92,21.151,21.14,60.68145925]
[1674212100824,45.47,21.15,21.14,25.20145925]
[1674212101038,10.0,21.148,21.136,35.49]
[1674212101368,21.92,21.147,21.134,35.49]
[1674212101583,17.0,21.146,21.134,35.49]
[1674212101895,1.92,21.145,21.134,35.49]
[1674212107676,1.92,21.145,21.135,10.0]
[1674212108620,1.92,21.145,21.134,35.49]
[1674212110301,1.92,21.145,21.135,10.0]
[1674212110923,0.96,21.145,21.135,42.04812591]
[1674212111140,0.96,21.146,21.135,42.04812591]
[1674212111359,10.96,21.148,21.135,42.04812591]
[1674212111674,20.0,21.147,21.135,42.04812591]
[1674212111883,0.96,21.146,21.135,42.04812591]
[1674212112201,0.96,21.145,21.135,42.04812591]
[1674212112933,0.96,21.145,21.137,33.59014647]
[1674212113143,0.96,21.146,21.138,10.0]
[1674212113567,17.96,21.148,21.138,10.0]
[1674212113756,20.96,21.147,21.138,10.0]
[1674212113967,0.96,21.146,21.138,10.0]
[1674212116612,20.96,21.147,21.138,10.0]
[1674212116848,20.0,21.147,21.138,79.08014647]
[1674212117019,20.0,21.149,21.138,79.08014647]
[1674212117229,20.0,21.152,21.138,79.08014647]
[1674212117445,0.96,21.151,21.138,79.08014647]
[1674212118087,0.96,21.15,21.138,79.08014647]
[1674212118290,0.96,21.149,21.138,79.08014647]
[1674212119029,0.96,21.15,21.138,79.08014647]
[1674212119245,45.45,21.159,21.14,15.06]
[1674212119456,35.45,21.159,21.141,35.48]
[1674212119662,20.0,21.158,21.141,111.34493905]
[1674212119870,20.0,21.158,21.142,85.86493905]
[1674212120078,20.0,21.158,21.143,35.48]
[1674212120391,20.0,21.158,21.144,10.0]
[1674212120644,18.92,21.157,21.145,35.48]
[1674212120805,18.92,21.157,21.146,10.0]
[1674212121015,18.92,21.157,21.146,53.81681314]
[1674212121229,18.92,21.157,21.146,43.81681314]
[1674212121430,18.92,21.157,21.147,43.81681314]
[1674212129855,1.92,21.157,21.147,43.81681314]
[1674212130173,20.0,21.158,21.148,53.77193132]
[1674212130370,20.0,21.159,21.149,10.0]
[1674212130586,20.0,21.159,21.149,74.92847779]
[1674212130791,20.0,21.159,21.15,64.92847779]
[1674212131214,0.96,21.158,21.151,10.0]
[1674212132993,0.96,21.157,21.15,46.62654647]
[1674212133325,0.96,21.157,21.147,35.47]
[1674212133326,0.96,21.156,21.147,35.47]
[1674212136994,0.96,21.156,21.148,10.0]
[1674212138353,0.96,21.156,21.148,18.29409891]
[1674212138577,0.96,21.155,21.148,18.29409891]
[1674212138786,0.96,21.154,21.147,35.47]
[1674212138994,0.96,21.153,21.147,35.47]
[1674212140239,0.96,21.153,21.148,10.0]
[1674212140783,0.96,21.154,21.148,10.0]
[1674212140999,0.96,21.155,21.15,10.0]
[1674212141187,1.92,21.155,21.15,10.0]
[1674212145008,20.0,21.157,21.15,10.0]
[1674212145215,1.92,21.156,21.15,10.0]
[1674212145429,0.96,21.156,21.15,10.0]
[1674212145623,50.0,21.16,21.152,10.0]
[1674212145830,50.0,21.16,21.153,35.46]
[1674212146055,50.0,21.16,21.154,10.0]
[1674212150699,50.0,21.16,21.152,63.75409891]
[1674212150894,50.0,21.16,21.152,28.29409891]
[1674212151304,50.0,21.16,21.152,18.29409891]
[1674212151305,10.0,21.159,21.152,18.29409891]
[1674212151514,18.92,21.158,21.152,18.29409891]
[1674212152254,18.92,21.158,21.148,45.47]
[1674212152469,18.92,21.158,21.148,10.0]
[1674212154497,18.92,21.158,21.147,45.47]
[1674212154666,18.92,21.158,21.147,10.0]
[1674212156143,1.92,21.158,21.147,10.0]
[1674212157522,11.92,21.158,21.148,18.29409891]
[1674212157702,17.0,21.157,21.148,18.29409891]
[1674212157914,1.92,21.156,21.148,18.29409891]
[1674212161818,1.92,21.156,21.149,10.0]
[1674212162149,1.92,21.156,21.15,18.29409891]
[1674212164338,1.92,21.156,21.148,35.47]
[1674212164548,1.92,21.156,21.146,10.0]
[1674212164778,1.92,21.156,21.147,20.0]
[1674212166978,5.14119,21.155,21.142,110.6988]
[1674212167188,36.42,21.154,21.139,35.49]
[1674212167377,23.10119,21.153,21.137,53.78409891]
[1674212167587,50.60119,21.152,21.137,53.78409891]
[1674212167815,17.96,21.151,21.137,53.78409891]
[1674212168022,10.0,21.15,21.137,35.49]
[1674212168237,44.06119,21.149,21.138,18.29409891]
[1674212168431,50.61119,21.148,21.131,217.2458]
[1674212168646,43.10119,21.147,21.131,217.2458]
[1674212168868,5.14119,21.146,21.132,35.5]
[1674212169190,20.0,21.147,21.133,18.29409891]
[1674212169374,10.0,21.155,21.134,45.49]
[1674212169705,72.46,21.154,21.135,28.29409891]
[1674212169922,72.46,21.154,21.136,35.49]
[1674212170132,72.46,21.154,21.137,10.0]
[1674212170341,1.92,21.153,21.137,28.29409891]
[1674212170537,35.46,21.152,21.138,18.29409891]
[1674212170748,38.92,21.151,21.139,10.0]
[1674212171177,38.92,21.151,21.139,28.29409891]
[1674212173310,37.96,21.151,21.139,28.29409891]
[1674212173475,17.96,21.151,21.139,28.29409891]
[1674212173685,0.96,21.151,21.141,10.0]
[1674212173915,0.96,21.152,21.141,10.0]
[1674212174542,0.96,21.151,21.141,10.0]
[1674212174742,0.96,21.151,21.141,28.29409891]
[1674212177906,0.96,21.151,21.142,35.48]
[1674212178095,0.96,21.151,21.141,18.29409891]
[1674212180848,0.96,21.15,21.141,18.29409891]
[1674212181062,0.96,21.149,21.14,35.48]
[1674212181371,0.96,21.148,21.14,35.48]
[1674212182195,17.0,21.153,21.14,35.48]
[1674212182528,0.96,21.152,21.14,35.48]
[1674212182716,5.14119,21.155,21.141,10.0]
[1674212182927,35.45,21.158,21.142,35.48]
[1674212183139,35.45,21.158,21.143,10.0]
[1674212184101,18.92,21.156,21.143,10.0]
[1674212186096,45.46,21.155,21.142,153.7376]
[1674212186315,18.92,21.154,21.142,153.7376]
[1674212187453,10.0,21.153,21.142,153.7376]
[1674212187647,18.92,21.152,21.142,118.2576]
[1674212190094,17.0,21.151,21.142,118.2576]
[1674212190302,1.92,21.15,21.142,118.2576]
[1674212190514,0.96,21.149,21.142,118.2576]
[1674212190724,0.96,21.148,21.142,118.2576]
[1674212193987,0.96,21.148,21.143,10.0]
[1674212194382,0.96,21.152,21.143,10.0]
[1674212194590,0.96,21.153,21.143,10.0]
[1674212194826,0.96,21.151,21.143,10.0]
[1674212195010,0.96,21.15,21.143,10.0]
[1674212195559,0.96,21.151,21.143,10.0]
[1674212199976,0.96,21.151,21.142,128.2576]
[1674212200602,0.96,21.151,21.143,10.0]
[1674212201444,0.96,21.151,21.142,118.2576]
[1674212205242,0.96,21.15,21.142,118.2576]
[1674212205553,0.96,21.149,21.142,118.2576]
[1674212207959,0.96,21.149,21.142,153.7376]
[1674212211023,0.96,21.149,21.142,35.48]
[1674212211217,0.96,21.148,21.138,35.49]
[1674212211558,0.96,21.147,21.138,35.49]
[1674212211743,0.96,21.146,21.138,35.49]
[1674212212895,0.96,21.147,21.138,35.49]
[1674212213216,35.45,21.158,21.139,28.29409891]
[1674212213428,35.45,21.158,21.141,10.0]
[1674212213642,35.45,21.158,21.142,35.48]
[1674212213836,35.45,21.158,21.143,10.0]
[1674212214047,35.45,21.158,21.144,35.48]
[1674212214612,18.92,21.156,21.144,35.48]
[1674212217756,18.92,21.156,21.145,10.0]
[1674212218181,17.0,21.155,21.145,10.0]
[1674212218390,0.96,21.154,21.145,28.29409891]
[1674212218600,20.0,21.158,21.145,28.29409891]
[1674212218822,20.0,21.158,21.147,10.0]
[1674212219354,20.0,21.159,21.147,10.0]
[1674212219662,0.96,21.158,21.147,10.0]
[1674212219862,0.96,21.157,21.147,10.0]
[1674212220061,0.96,21.156,21.147,10.0]
[1674212220278,17.96,21.156,21.147,10.0]
[1674212220496,0.96,21.155,21.147,10.0]
[1674212220709,0.96,21.154,21.146,53.76409891]
[1674212221118,0.96,21.154,21.144,35.48]
[1674212221874,17.96,21.154,21.144,35.48]
[1674212222087,0.96,21.153,21.144,35.48]
[1674212222270,0.96,21.152,21.144,35.48]
[1674212222481,0.96,21.151,21.143,53.77409891]
[1674212222799,0.96,21.15,21.143,53.77409891]
[1674212223009,0.96,21.149,21.143,53.77409891]
[1674212225024,0.96,21.149,21.143,35.48]
[1674212225430,20.0,21.157,21.143,35.48]
[1674212225641,20.0,21.157,21.145,10.0]
[1674212225868,20.0,21.158,21.146,35.47]
[1674212226084,20.0,21.159,21.146,35.47]
[1674212226400,20.0,21.159,21.147,10.0]
[1674212227012,18.92,21.158,21.147,10.0]
[1674212227222,20.0,21.157,21.147,10.0]
[1674212227422,18.92,21.156,21.147,10.0]
[1674212227633,18.92,21.156,21.148,35.47]
[1674212228065,18.92,21.156,21.147,45.47]
[1674212228485,18.92,21.156,21.147,35.47]
[1674212228906,18.92,21.156,21.144,35.48]
[1674212232478,20.0,21.157,21.144,35.48]
[1674212232691,20.0,21.158,21.146,10.0]
[1674212232904,20.0,21.159,21.148,10.0]
[1674212234274,35.45,21.163,21.148,10.0]
[1674212234487,2.5967488,21.175,21.159,20.0]
[1674212234681,2.5967488,21.175,21.16,67.56]
[1674212234888,2.5967488,21.175,21.16,78.85409891]
[1674212235113,2.5967488,21.175,21.161,87.63732839]
[1674212235317,2.5967488,21.175,21.162,35.45]
[1674212235515,2.5967488,21.175,21.163,10.0]
[1674212235727,2.5967488,21.175,21.164,35.44]
[1674212235947,2.5967488,21.175,21.164,93.35574621]
[1674212236165,2.5967488,21.175,21.165,67.91574621]
[1674212236378,2.5967488,21.175,21.167,10.0]
[1674212236789,2.5967488,21.175,21.167,67.91574621]
[1674212237323,2.5967488,21.175,21.168,35.44]
[1674212237515,0.0007488,21.175,21.169,10.0]
[1674212237725,40.55119,21.187,21.171,10.0]
[1674212237952,5.14119,21.186,21.172,35.43]
[1674212238166,5.14119,21.186,21.173,10.0]
[1674212239200,17.96,21.185,21.173,10.0]
[1674212240565,0.96,21.184,21.173,10.0]
[1674212240791,0.96,21.183,21.173,10.0]
[1674212241012,0.96,21.182,21.173,10.0]
[1674212241331,0.96,21.181,21.173,10.0]
[1674212241544,0.96,21.18,21.173,10.0]
[1674212241739,0.96,21.179,21.172,35.43]
[1674212241938,0.96,21.179,21.171,10.0]
[1674212242163,0.96,21.179,21.173,10.0]
[1674212243750,0.96,21.179,21.172,35.43]
[1674212243947,0.96,21.178,21.171,35.43]
[1674212244266,0.96,21.177,21.17,35.43]
[1674212244457,0.96,21.176,21.166,35.44]
[1674212244663,0.96,21.175,21.167,20.0]
[1674212244874,0.96,21.174,21.168,35.44]
[1674212245100,0.96,21.173,21.168,35.44]
[1674212246370,35.41,21.183,21.168,35.44]
[1674212246371,35.41,21.183,21.169,10.0]
[1674212246564,18.92,21.182,21.169,10.0]
[1674212246774,18.92,21.182,21.169,28.29409891]
[1674212247002,18.92,21.182,21.171,10.0]
[1674212261074,18.92,21.182,21.169,35.44]
[1674212261302,54.33,21.182,21.169,35.44]
[1674212261624,18.92,21.182,21.17,10.0]
[1674212261940,5.14119,21.183,21.17,10.0]
[1674212262124,5.14119,21.183,21.17,28.29409891]
[1674212262768,5.14119,21.183,21.171,35.43]
[1674212263407,18.92,21.182,21.172,10.0]
[1674212265498,5.14119,21.183,21.172,28.29409891]
[1674212265714,45.4,21.189,21.173,35.43]
[1674212265928,20.0,21.187,21.174,10.0]
[1674212266141,20.0,21.187,21.175,35.43]
[1674212266346,20.0,21.187,21.176,10.0]
[1674212266749,10.0,21.191,21.176,10.0]
[1674212266962,20.0,21.19,21.176,10.0]
[1674212267612,54.32,21.189,21.176,10.0]
[1674212267815,458.21,21.22,21.18,15.1]
[1674212268040,5.14119,21.207,21.181,38.92]
[1674212268355,5.14119,21.207,21.182,35.41]
[1674212268567,45.37,21.206,21.183,48.92]
[1674212268880,40.51119,21.206,21.184,35.41]
[1674212269083,5.14119,21.206,21.185,38.92]
[1674212269277,35.37,21.207,21.186,35.41]
[1674212269486,35.37,21.207,21.187,38.92]
[1674212269804,35.37,21.207,21.188,35.4]
[1674212270009,35.37,21.207,21.189,10.0]
[1674212270226,35.37,21.207,21.19,35.4]
[1674212270437,40.51119,21.207,21.19,35.4]
[1674212270654,40.51119,21.207,21.191,28.29409891]
[1674212270877,35.37,21.207,21.191,28.29409891]
[1674212271187,35.37,21.207,21.189,10.0]
[1674212271188,15.14119,21.206,21.192,35.4]
[1674212271381,15.14119,21.206,21.188,35.4]
[1674212271382,40.52119,21.205,21.188,35.4]
[1674212271590,5.14119,21.204,21.189,10.0]
[1674212271929,36.34,21.203,21.189,10.0]
[1674212272114,17.96,21.202,21.189,10.0]
[1674212272325,0.96,21.201,21.189,10.0]
[1674212272542,0.96,21.2,21.189,10.0]
[1674212272762,0.96,21.199,21.189,10.0]
[1674212272964,0.96,21.198,21.188,35.4]
[1674212273178,0.96,21.197,21.188,35.4]
[1674212273371,0.96,21.196,21.188,35.4]
[1674212273818,0.96,21.196,21.189,10.0]
[1674212276859,0.96,21.197,21.189,10.0]
[1674212277055,17.0,21.202,21.189,10.0]
[1674212277267,1.92,21.201,21.189,10.0]
[1674212278244,10.0,21.2,21.188,35.4]
[1674212278538,18.92,21.199,21.187,65.41]
[1674212280426,35.38,21.203,21.187,65.41]
[1674212280632,35.38,21.203,21.188,10.0]
[1674212280845,45.37,21.206,21.189,35.4]
[1674212281077,45.37,21.206,21.19,10.0]
[1674212281290,45.37,21.206,21.192,10.0]
[1674212281902,45.37,21.206,21.191,35.4]
[1674212281903,10.0,21.202,21.191,35.4]
[1674212282121,18.92,21.201,21.19,35.4]
[1674212282348,50.55,21.2,21.187,35.41]
[1674212282551,44.06119,21.199,21.183,35.41]
[1674212282868,10.0,21.197,21.182,35.41]
[1674212283081,18.92,21.196,21.182,35.41]
[1674212283796,18.92,21.196,21.183,10.0]
[1674212284001,18.92,21.196,21.184,35.41]
[1674212284435,35.39,21.198,21.185,10.0]
[1674212284642,25.14119,21.199,21.185,10.0]
[1674212284844,10.0,21.198,21.185,10.0]
[1674212285056,20.0,21.197,21.185,45.41]
[1674212285811,45.37,21.206,21.186,38.29409891]
[1674212285995,45.37,21.206,21.188,10.0]
[1674212286331,10.0,21.206,21.189,35.4]
[1674212286531,10.0,21.206,21.189,53.69409891]
[1674212286854,35.38,21.205,21.189,35.4]
[1674212287073,10.0,21.204,21.189,35.4]
[1674212287477,10.0,21.204,21.19,10.0]
[1674212287678,17.96,21.203,21.19,10.0]
[1674212289061,0.96,21.202,21.191,35.4]
[1674212289280,0.96,21.201,21.191,35.4]
[1674212291695,0.96,21.202,21.191,35.4]
[1674212292432,35.37,21.206,21.191,35.4]
[1674212292624,45.37,21.209,21.192,10.0]
[1674212292839,45.37,21.209,21.194,10.0]
[1674212293152,120.1899,21.208,21.194,10.0]
[1674212293354,20.0,21.206,21.193,35.4]
[1674212293566,27.96,21.205,21.191,35.4]
[1674212293775,0.96,21.204,21.191,35.4]
[1674212294106,0.96,21.203,21.191,35.4]
[1674212296311,0.96,21.203,21.192,10.0]
[1674212296626,0.96,21.203,21.193,35.4]
[1674212297682,0.96,21.202,21.193,35.4]
[1674212298499,0.96,21.202,21.192,10.0]
[1674212298709,0.96,21.202,21.193,35.4]
[1674212299144,0.96,21.201,21.193,35.4]
[1674212299772,0.96,21.2,21.193,35.4]
[1674212300196,0.96,21.199,21.193,35.4]
[1674212300406,0.96,21.199,21.191,35.4]
[1674212300618,0.96,21.198,21.191,35.4]
[1674212300833,0.96,21.197,21.191,35.4]
[1674212303879,0.96,21.198,21.192,10.0]
[1674212304088,27.0,21.205,21.193,35.4]
[1674212304276,35.37,21.207,21.193,35.4]
[1674212304488,228.5297,21.208,21.193,35.4]
[1674212304720,20.0,21.207,21.194,10.0]
[1674212304935,20.0,21.207,21.195,35.39]
[1674212305145,20.0,21.207,21.194,10.0]
[1674212305581,17.96,21.206,21.194,10.0]
[1674212305796,0.96,21.205,21.194,10.0]
[1674212306003,0.96,21.204,21.194,10.0]
[1674212307891,0.96,21.204,21.195,35.39]
[1674212308098,0.96,21.204,21.193,35.4]
[1674212308099,17.96,21.204,21.193,35.4]
[1674212308425,0.96,21.203,21.193,35.4]
[1674212308629,0.96,21.202,21.193,35.4]
[1674212308947,0.96,21.201,21.193,35.4]
[1674212309475,0.96,21.2,21.193,35.4]
[1674212310208,17.0,21.202,21.193,35.4]
[1674212310417,0.96,21.201,21.193,35.4]
[1674212310830,0.96,21.201,21.194,10.0]
[1674212311047,0.96,21.201,21.195,35.39]
[1674212311691,0.96,21.201,21.196,10.0]
[1674212312087,0.96,21.201,21.195,35.39]
[1674212312606,20.0,21.207,21.195,35.39]
[1674212313032,20.0,21.207,21.194,10.0]
[1674212314516,17.0,21.206,21.194,10.0]
[1674212314731,1.92,21.205,21.196,10.0]
[1674212314939,10.96,21.205,21.194,10.0]
[1674212315138,17.0,21.204,21.194,10.0]
[1674212315576,0.96,21.203,21.194,10.0]
[1674212315888,0.96,21.205,21.194,10.0]
[1674212316103,0.96,21.204,21.194,10.0]
[1674212316295,0.96,21.203,21.194,10.0]
[1674212316506,0.96,21.202,21.194,10.0]
[1674212317991,0.96,21.201,21.194,10.0]
[1674212318309,0.96,21.201,21.193,35.4]
[1674212318623,0.96,21.202,21.194,10.0]
[1674212318832,0.96,21.203,21.194,10.0]
[1674212319046,0.96,21.202,21.194,10.0]
[1674212320201,0.96,21.203,21.194,10.0]
[1674212320416,10.0,21.206,21.194,10.0]
[1674212321665,0.96,21.205,21.194,10.0]
[1674212321985,0.96,21.204,21.195,35.39]
[1674212322303,17.96,21.204,21.194,10.0]
[1674212322517,0.96,21.204,21.194,10.0]
[1674212323667,0.96,21.204,21.196,10.0]
[1674212324295,0.96,21.205,21.196,10.0]
[1674212328503,0.96,21.205,21.195,35.39]
[1674212328691,0.96,21.204,21.195,35.39]
[1674212328905,20.0,21.207,21.195,35.39]
[1674212329239,0.96,21.206,21.195,35.39]
[1674212329431,10.96,21.205,21.195,35.39]
[1674212329642,20.0,21.207,21.195,35.39]
[1674212329975,0.96,21.206,21.195,35.39]
[1674212331446,10.96,21.206,21.195,35.39]
[1674212331641,0.96,21.205,21.191,35.4]
[1674212332181,24.71576951,21.205,21.189,35.4]
[1674212332381,27.96,21.204,21.19,10.0]
[1674212332592,0.96,21.203,21.191,35.4]
[1674212332801,0.96,21.202,21.191,35.4]
[1674212333011,0.96,21.201,21.191,35.4]
[1674212333223,0.96,21.2,21.191,35.4]
[1674212333654,10.96,21.199,21.188,35.4]
[1674212333856,37.96,21.198,21.187,35.41]
[1674212334059,10.96,21.197,21.187,35.41]
[1674212334266,17.96,21.196,21.187,35.41]
[1674212334479,0.96,21.195,21.186,35.41]
[1674212334725,0.96,21.194,21.186,35.41]
[1674212338181,20.0,21.198,21.186,35.41]
[1674212338494,18.92,21.197,21.187,30.0]
[1674212338709,17.96,21.197,21.189,10.0]
[1674212338931,17.96,21.197,21.19,35.4]
[1674212340582,0.96,21.197,21.189,35.4]
[1674212342373,0.96,21.197,21.188,35.4]
[1674212343851,0.96,21.197,21.189,10.0]
[1674212344470,0.96,21.197,21.19,35.4]
[1674212344784,0.96,21.197,21.189,45.4]
[1674212345643,0.96,21.197,21.188,45.4]
[1674212346165,0.96,21.197,21.188,35.4]
[1674212346358,0.96,21.197,21.156,227.05189607]
[1674212346359,0.96,21.197,21.186,35.41]
[1674212346564,18.92,21.199,21.186,35.41]
[1674212346775,20.0,21.198,21.186,35.41]
[1674212347115,28.92,21.197,21.186,35.41]
[1674212347742,28.92,21.197,21.184,35.41]
[1674212349307,20.0,21.198,21.185,10.0]
[1674212349512,20.0,21.198,21.186,35.41]
[1674212349735,10.0,21.197,21.186,35.41]
[1674212350597,17.96,21.196,21.186,35.41]
[1674212350789,18.92,21.196,21.186,35.41]
[1674212353316,1.92,21.196,21.186,35.41]
[1674212353738,35.38,21.203,21.187,20.0]
[1674212353933,45.38,21.204,21.188,45.4]
[1674212354147,40.52119,21.204,21.188,45.4]
[1674212354374,5.14119,21.204,21.188,45.4]
[1674212355009,17.0,21.203,21.188,45.4]
[1674212355323,0.96,21.202,21.188,45.4]
[1674212355540,0.96,21.201,21.188,45.4]
[1674212355748,5.14119,21.204,21.188,45.4]
[1674212356592,5.14119,21.204,21.188,63.69409891]
[1674212357321,5.14119,21.204,21.19,10.0]
[1674212357509,10.0,21.207,21.191,35.4]
[1674212357718,10.0,21.207,21.192,10.0]
[1674212357928,10.0,21.207,21.194,10.0]
[1674212358158,10.0,21.207,21.195,35.39]
[1674212358353,10.0,21.207,21.193,35.4]
[1674212358565,10.0,21.205,21.193,35.4]
[1674212358790,18.92,21.204,21.193,35.4]
[1674212360452,18.92,21.204,21.191,35.4]
[1674212366064,10.0,21.203,21.191,35.4]
[1674212366275,18.92,21.202,21.191,35.4]
[1674212366585,10.0,21.201,21.188,35.4]
[1674212366801,89.44,21.2,21.184,35.41]
[1674212367010,15.14119,21.199,21.184,35.41]
[1674212367208,10.0,21.197,21.183,35.41]
[1674212367402,0.96,21.196,21.183,35.41]
[1674212367617,18.92,21.196,21.183,35.41]
[1674212368162,10.0,21.195,21.183,35.41]
[1674212368480,18.92,21.194,21.183,35.41]
[1674212369328,18.92,21.194,21.179,35.42]
[1674212370056,18.92,21.194,21.18,10.0]
[1674212370269,18.92,21.194,21.181,35.42]
[1674212372379,18.92,21.194,21.182,10.0]